[Event "*** Titled Tuesday Blitz"]
[Site "Chess.com"]
[Date "2018.12.04"]
[Round "2"]
[White "GMHess"]
[Black "Mykola-Bortnyk"]
[Result "0-1"]
[WhiteElo "2631"]
[BlackElo "2837"]
[TimeControl "180+2"]
[EndTime "13:25:58 PST"]
[Termination "Mykola-Bortnyk won by resignation"]

1. d4 {[%clk 0:03:01.9]} 1... d5 {[%clk 0:02:59.4]} 2. g3 {[%clk 0:03:01.3]}
2... Nf6 {[%clk 0:02:58.6]} 3. Bg2 {[%clk 0:03:02.8]} 3... e6 {[%clk 0:02:57.3]}
4. Nf3 {[%clk 0:03:04.3]} 4... c5 {[%clk 0:02:55.7]} 5. O-O {[%clk 0:03:06.2]}
5... Nc6 {[%clk 0:02:56.3]} 6. c4 {[%clk 0:03:04.8]} 6... dxc4 {[%clk
0:02:56.4]} 7. dxc5 {[%clk 0:03:04.5]} 7... Qxd1 {[%clk 0:02:53.6]} 8. Rxd1
{[%clk 0:03:06.4]} 8... Bxc5 {[%clk 0:02:54.7]} 9. Nbd2 {[%clk 0:03:07.9]} 9...
c3 {[%clk 0:02:53.9]} 10. bxc3 {[%clk 0:03:09.8]} 10... Bd7 {[%clk 0:02:37.6]}
11. Nb3 {[%clk 0:03:08.9]} 11... Bb6 {[%clk 0:02:36.4]} 12. c4 {[%clk 0:03:05]}
12... O-O-O {[%clk 0:02:18.2]} 13. c5 {[%clk 0:02:43.2]} 13... Bc7 {[%clk
0:02:19]} 14. Bb2 {[%clk 0:02:41.7]} 14... e5 {[%clk 0:02:12.9]} 15. Nbd2 {[%clk
0:02:20]} 15... Ne8 {[%clk 0:01:52]} 16. Ng5 {[%clk 0:01:59.9]} 16... Rf8 {[%clk
0:01:51.7]} 17. Nxh7 {[%clk 0:01:59]} 17... Rh8 {[%clk 0:01:53]} 18. Ng5 {[%clk
0:02:00.3]} 18... Rf8 {[%clk 0:01:54.6]} 19. Nc4 {[%clk 0:01:52.8]} 19... f6
{[%clk 0:01:54.3]} 20. Ne4 {[%clk 0:01:43.7]} 20... Be6 {[%clk 0:01:54.6]} 21.
Ned6+ {[%clk 0:01:37.7]} 21... Nxd6 {[%clk 0:01:49.3]} 22. Nxd6+ {[%clk
0:01:35.5]} 22... Bxd6 {[%clk 0:01:49.4]} 23. cxd6 {[%clk 0:01:33.6]} 23... Kd7
{[%clk 0:01:50.2]} 24. f4 {[%clk 0:01:08]} 24... exf4 {[%clk 0:01:34.7]} 25.
gxf4 {[%clk 0:01:09.9]} 25... Bg4 {[%clk 0:01:35.6]} 26. Rd2 {[%clk 0:00:49.2]}
26... Rfe8 {[%clk 0:01:34.5]} 27. e4 {[%clk 0:00:48.8]} 27... Re6 {[%clk
0:01:25.1]} 28. Ba3 {[%clk 0:00:29.4]} 28... b5 {[%clk 0:01:23.3]} 29. Rc1
{[%clk 0:00:25.3]} 29... Rc8 {[%clk 0:01:05.4]} 30. Rdc2 {[%clk 0:00:18.4]}
30... b4 {[%clk 0:00:34.9]} 31. Bxb4 {[%clk 0:00:11.9]} 31... Be2 {[%clk
0:00:19]} 32. Bh3 {[%clk 0:00:07]} 32... Bb5 {[%clk 0:00:20]} 33. e5 {[%clk
0:00:06.1]} 33... fxe5 {[%clk 0:00:19.4]} 34. fxe5 {[%clk 0:00:08]} 34... Re8
{[%clk 0:00:19.4]} 35. Bc5 {[%clk 0:00:05.8]} 35... Nxe5 {[%clk 0:00:17]} 36.
Bxa7 {[%clk 0:00:04.3]} 36... Bc6 {[%clk 0:00:17.3]} 37. Bxe6+ {[%clk
0:00:04.5]} 37... Rxe6 {[%clk 0:00:18.6]} 38. Kf2 {[%clk 0:00:05.2]} 38... Nd3+
{[%clk 0:00:19.3]} 39. Kg3 {[%clk 0:00:05.3]} 39... Rg6+ {[%clk 0:00:20.7]} 40.
Kh4 {[%clk 0:00:05.9]} 40... Ne5 {[%clk 0:00:19.7]} 41. Rc3 {[%clk 0:00:04.9]}
41... Rg4+ {[%clk 0:00:19.5]} 42. Kh5 {[%clk 0:00:06.3]} 42... Bd5 {[%clk
0:00:17.8]} 43. Rf1 {[%clk 0:00:05.4]} 43... Be4 {[%clk 0:00:14.7]} 44. Rc7+
{[%clk 0:00:02.9]} 44... Kxd6 {[%clk 0:00:16]} 45. Rxg7 {[%clk 0:00:04.6]} 45...
Rxg7 {[%clk 0:00:17.4]} 46. Bb8+ {[%clk 0:00:05.5]} 46... Ke6 {[%clk 0:00:17.4]}
47. Bxe5 {[%clk 0:00:06.6]} 47... Kxe5 {[%clk 0:00:19.3]} 48. Kh4 {[%clk
0:00:07]} 48... Bf5 {[%clk 0:00:19.9]} 49. h3 {[%clk 0:00:05.6]} 49... Rg2
{[%clk 0:00:17.8]} 50. Re1+ {[%clk 0:00:05.2]} 50... Kf6 {[%clk 0:00:18.6]} 51.
Re3 {[%clk 0:00:04.4]} 51... Rxa2 {[%clk 0:00:19.2]} 52. Kg3 {[%clk 0:00:06.3]}
52... Ra1 {[%clk 0:00:19.2]} 53. Rf3 {[%clk 0:00:07.3]} 53... Kg5 {[%clk
0:00:19.1]} 54. h4+ {[%clk 0:00:08.2]} 54... Kg6 {[%clk 0:00:20.5]} 55. h5+
{[%clk 0:00:09.4]} 55... Kg5 {[%clk 0:00:22]} 56. h6 {[%clk 0:00:11.3]} 56...
Rh1 {[%clk 0:00:23]} 57. Kf2 {[%clk 0:00:10.6]} 57... Rxh6 {[%clk 0:00:23.8]}
58. Rg3+ {[%clk 0:00:12.1]} 58... Kf4 {[%clk 0:00:25.4]} 59. Rf3+ {[%clk
0:00:13.5]} 59... Ke5 {[%clk 0:00:26.9]} 60. Ra3 {[%clk 0:00:15]} 60... Be4
{[%clk 0:00:26.9]} 61. Kg3 {[%clk 0:00:15.1]} 61... Rg6+ {[%clk 0:00:27.8]} 62.
Kf2 {[%clk 0:00:16.5]} 62... Rg2+ {[%clk 0:00:28.9]} 63. Ke1 {[%clk 0:00:10.3]}
63... Kd4 {[%clk 0:00:30.1]} 64. Kf1 {[%clk 0:00:07.4]} 64... Rh2 {[%clk
0:00:30.9]} 65. Kg1 {[%clk 0:00:07.2]} 65... Rc2 {[%clk 0:00:31.6]} 66. Rg3
{[%clk 0:00:05.6]} 66... Rb2 {[%clk 0:00:29.1]} 67. Kf1 {[%clk 0:00:05.9]} 67...
Bd3+ {[%clk 0:00:27.6]} 68. Kg1 {[%clk 0:00:06.4]} 68... Ke4 {[%clk 0:00:29.2]}
69. Rg2 {[%clk 0:00:07.4]} 69... Rb8 {[%clk 0:00:28.5]} 70. Rf2 {[%clk
0:00:06.7]} 70... Ke3 {[%clk 0:00:28.8]} 71. Rf7 {[%clk 0:00:06.8]} 71... Rg8+
{[%clk 0:00:29.6]} 72. Kh2 {[%clk 0:00:07.5]} 72... Bc4 {[%clk 0:00:29.4]} 73.
Rf6 {[%clk 0:00:06.4]} 73... Bd5 {[%clk 0:00:28.8]} 74. Kh3 {[%clk 0:00:07.3]}
74... Bf3 {[%clk 0:00:27.7]} 75. Kh4 {[%clk 0:00:06.5]} 75... Ke4 {[%clk
0:00:26.3]} 76. Ra6 {[%clk 0:00:03.1]} 76... Ke5 {[%clk 0:00:24.6]} 77. Ra5+
{[%clk 0:00:03.7]} 77... Kf4 {[%clk 0:00:26.1]} 78. Ra4+ {[%clk 0:00:02.8]}
78... Be4 {[%clk 0:00:27.4]} 79. Ra5 {[%clk 0:00:03.9]} 79... Rg2 {[%clk
0:00:25]} 80. Kh3 {[%clk 0:00:03.4]} 80... Rb2 {[%clk 0:00:20.8]} 81. Ra4 {[%clk
0:00:04]} 81... Rd2 {[%clk 0:00:18.2]} 82. Rb4 {[%clk 0:00:04.4]} 82... Rd1
{[%clk 0:00:16.6]} 83. Rb2 {[%clk 0:00:03.7]} 83... Rd7 {[%clk 0:00:17.5]} 84.
Kh2 {[%clk 0:00:03.8]} 84... Rh7+ {[%clk 0:00:18.6]} 85. Kg1 {[%clk 0:00:04.9]}
85... Rh1+ {[%clk 0:00:20.5]} 86. Kf2 {[%clk 0:00:06.2]} 86... Rh2+ {[%clk
0:00:22.4]} 87. Ke1 {[%clk 0:00:08]} 87... Rxb2 {[%clk 0:00:24.2]} 0-1

[Event "*** Titled Tuesday Blitz"]
[Site "Chess.com"]
[Date "2018.12.04"]
[Round "2"]
[White "nochewycandy"]
[Black "Phelathegreat"]
[Result "1-0"]
[WhiteElo "2286"]
[BlackElo "2339"]
[TimeControl "180+2"]
[EndTime "13:26:30 PST"]
[Termination "nochewycandy won by resignation"]

1. c4 {[%clk 0:03:01.9]} 1... c5 {[%clk 0:02:58.9]} 2. g3 {[%clk 0:03:02.9]}
2... Nc6 {[%clk 0:03:00.3]} 3. Bg2 {[%clk 0:03:04.8]} 3... g6 {[%clk 0:03:01.8]}
4. Nc3 {[%clk 0:03:05.6]} 4... Bg7 {[%clk 0:03:03]} 5. a3 {[%clk 0:03:06.4]}
5... d6 {[%clk 0:03:04.2]} 6. Rb1 {[%clk 0:03:07.1]} 6... e6 {[%clk 0:03:05.6]}
7. b4 {[%clk 0:03:04]} 7... Nge7 {[%clk 0:03:06.5]} 8. Nf3 {[%clk 0:02:48]} 8...
O-O {[%clk 0:03:06.5]} 9. O-O {[%clk 0:02:49]} 9... Rb8 {[%clk 0:03:08]} 10. e3
{[%clk 0:02:36.8]} 10... Nf5 {[%clk 0:03:02.1]} 11. Qc2 {[%clk 0:02:31]} 11...
h5 {[%clk 0:02:56.5]} 12. h4 {[%clk 0:02:31]} 12... b6 {[%clk 0:02:53.2]} 13. d3
{[%clk 0:02:22.6]} 13... Bb7 {[%clk 0:02:54.3]} 14. Bd2 {[%clk 0:02:17.9]} 14...
Rc8 {[%clk 0:02:55.5]} 15. Qa4 {[%clk 0:02:15.6]} 15... Qd7 {[%clk 0:02:43.5]}
16. Rfd1 {[%clk 0:02:07.7]} 16... Ba8 {[%clk 0:02:31]} 17. Ne4 {[%clk
0:01:43.4]} 17... Rfd8 {[%clk 0:02:24.5]} 18. Bc3 {[%clk 0:01:36.2]} 18... e5
{[%clk 0:02:09]} 19. Ba1 {[%clk 0:01:15.2]} 19... Qe7 {[%clk 0:02:01.6]} 20. Nc3
{[%clk 0:01:12.4]} 20... Qd7 {[%clk 0:01:50.3]} 21. Ng5 {[%clk 0:01:10.7]} 21...
Nce7 {[%clk 0:01:44.2]} 22. Qxd7 {[%clk 0:01:07.2]} 22... Rxd7 {[%clk
0:01:43.9]} 23. Bxa8 {[%clk 0:00:59.7]} 23... Rxa8 {[%clk 0:01:45]} 24. Nf3
{[%clk 0:00:32.6]} 24... Rad8 {[%clk 0:01:35.7]} 25. e4 {[%clk 0:00:33.4]} 25...
Nd4 {[%clk 0:01:35.9]} 26. Nxd4 {[%clk 0:00:34.4]} 26... exd4 {[%clk 0:01:33.5]}
27. Ne2 {[%clk 0:00:21.4]} 27... f5 {[%clk 0:01:27.8]} 28. f3 {[%clk 0:00:22.5]}
28... fxe4 {[%clk 0:01:24.8]} 29. dxe4 {[%clk 0:00:23.7]} 29... Nc6 {[%clk
0:01:21.7]} 30. Nf4 {[%clk 0:00:24.5]} 30... Kf7 {[%clk 0:01:21.4]} 31. Kg2
{[%clk 0:00:25.8]} 31... Ne7 {[%clk 0:01:21.8]} 32. b5 {[%clk 0:00:24.7]} 32...
Bh6 {[%clk 0:01:21.4]} 33. Nd3 {[%clk 0:00:23.8]} 33... Bg7 {[%clk 0:01:18.4]}
34. Bb2 {[%clk 0:00:25.1]} 34... Ng8 {[%clk 0:01:17.9]} 35. Bc1 {[%clk 0:00:25]}
35... Re8 {[%clk 0:01:19.1]} 36. Bg5 {[%clk 0:00:26.1]} 36... Bf6 {[%clk
0:01:18.6]} 37. Bd2 {[%clk 0:00:26.3]} 37... Bg7 {[%clk 0:01:12.7]} 38. a4
{[%clk 0:00:27.7]} 38... Bf6 {[%clk 0:01:12.4]} 39. Ra1 {[%clk 0:00:28.2]} 39...
Bd8 {[%clk 0:01:13]} 40. a5 {[%clk 0:00:28.1]} 40... Nf6 {[%clk 0:01:01.6]} 41.
axb6 {[%clk 0:00:28.6]} 41... Bxb6 {[%clk 0:01:03.3]} 42. Bg5 {[%clk 0:00:28.5]}
42... Nh7 {[%clk 0:01:02.2]} 43. Bd2 {[%clk 0:00:28.1]} 43... Nf6 {[%clk
0:01:03.1]} 44. Re1 {[%clk 0:00:29.1]} 44... Rde7 {[%clk 0:01:03.8]} 45. Bg5
{[%clk 0:00:29.6]} 45... Re6 {[%clk 0:01:04.9]} 46. Nf4 {[%clk 0:00:30.4]} 46...
Re5 {[%clk 0:01:03.9]} 47. Bxf6 {[%clk 0:00:28.1]} 47... Kxf6 {[%clk 0:01:04.7]}
48. Nd5+ {[%clk 0:00:29.3]} 48... Kf7 {[%clk 0:01:05.9]} 49. Ra6 {[%clk
0:00:25.4]} 49... Rb8 {[%clk 0:01:05.4]} 50. f4 {[%clk 0:00:25.1]} 50... Ree8
{[%clk 0:01:05.9]} 51. Kf3 {[%clk 0:00:26.1]} 51... Rb7 {[%clk 0:00:54.3]} 52.
Rea1 {[%clk 0:00:26.6]} 52... Ke6 {[%clk 0:00:43.1]} 53. Re1 {[%clk 0:00:21.7]}
53... Kf7 {[%clk 0:00:44.3]} 54. Re2 {[%clk 0:00:22.7]} 54... Ke6 {[%clk
0:00:45.3]} 55. f5+ {[%clk 0:00:21.5]} 55... Kf7 {[%clk 0:00:43.4]} 56. fxg6+
{[%clk 0:00:21.5]} 56... Kxg6 {[%clk 0:00:44]} 57. Nf4+ {[%clk 0:00:23.4]} 57...
Kh6 {[%clk 0:00:43.3]} 58. Rg2 {[%clk 0:00:20.7]} 58... Rg7 {[%clk 0:00:42.4]}
59. Re2 {[%clk 0:00:22.3]} 59... Reg8 {[%clk 0:00:42.6]} 60. Rg2 {[%clk
0:00:23.3]} 60... Rf8 {[%clk 0:00:43.7]} 61. Ke2 {[%clk 0:00:23.6]} 61... Re8
{[%clk 0:00:44.2]} 62. Kd3 {[%clk 0:00:24.6]} 62... Rf8 {[%clk 0:00:45.1]} 63.
Ne6 {[%clk 0:00:25.2]} 63... Rf3+ {[%clk 0:00:46]} 64. Ke2 {[%clk 0:00:25.6]}
64... Re3+ {[%clk 0:00:46.3]} 65. Kf2 {[%clk 0:00:25.6]} 65... Rf7+ {[%clk
0:00:46.8]} 66. Kg1 {[%clk 0:00:26]} 66... Re1+ {[%clk 0:00:47.6]} 67. Kh2
{[%clk 0:00:27]} 67... Rxe4 {[%clk 0:00:49.4]} 68. Ng5 {[%clk 0:00:27.3]} 68...
Rfe7 {[%clk 0:00:50.6]} 69. Nxe4 {[%clk 0:00:28.3]} 69... Rxe4 {[%clk
0:00:52.5]} 70. Raa2 {[%clk 0:00:30.2]} 70... Kg6 {[%clk 0:00:49.6]} 71. Rge2
{[%clk 0:00:31.2]} 71... Kf5 {[%clk 0:00:50.1]} 72. Kg2 {[%clk 0:00:30.7]} 72...
d3 {[%clk 0:00:49.7]} 73. Rxe4 {[%clk 0:00:29.2]} 73... Kxe4 {[%clk 0:00:51.5]}
74. Kf2 {[%clk 0:00:30.7]} 74... Kd4 {[%clk 0:00:52.4]} 75. Ra4 {[%clk
0:00:30.5]} 75... d5 {[%clk 0:00:53.7]} 76. cxd5+ {[%clk 0:00:30.3]} 76... c4
{[%clk 0:00:55.2]} 77. d6 {[%clk 0:00:30.2]} 77... Kc5 {[%clk 0:00:56.5]} 78.
Ke1 {[%clk 0:00:25.7]} 78... Kxd6 {[%clk 0:00:56.2]} 79. Rxc4 {[%clk 0:00:26.3]}
79... Kd5 {[%clk 0:00:57.6]} 80. Rc6 {[%clk 0:00:23.8]} 80... Ke4 {[%clk
0:00:55.3]} 81. Rg6 {[%clk 0:00:22.5]} 81... Kd4 {[%clk 0:00:49.9]} 82. Rh6
{[%clk 0:00:20.7]} 82... Kc3 {[%clk 0:00:49.9]} 83. Kd1 {[%clk 0:00:21.5]} 83...
Bf2 {[%clk 0:00:50.9]} 84. Rxh5 {[%clk 0:00:22.2]} 84... Bxg3 {[%clk 0:00:52.2]}
85. Rh7 {[%clk 0:00:23.2]} 85... Kb4 {[%clk 0:00:52.2]} 86. h5 {[%clk
0:00:24.6]} 86... Kxb5 {[%clk 0:00:53.3]} 87. Rxa7 {[%clk 0:00:25]} 87... Kc5
{[%clk 0:00:54]} 88. Rd7 {[%clk 0:00:25.4]} 88... Kc4 {[%clk 0:00:51.8]} 89. h6
{[%clk 0:00:26.3]} 89... Be5 {[%clk 0:00:53.3]} 90. h7 {[%clk 0:00:28.2]} 1-0

[Event "*** Titled Tuesday Blitz"]
[Site "Chess.com"]
[Date "2018.12.04"]
[Round "2"]
[White "Abdodi"]
[Black "WinnerOleg"]
[Result "0-1"]
[WhiteElo "2229"]
[BlackElo "2329"]
[TimeControl "180+2"]
[EndTime "13:27:11 PST"]
[Termination "WinnerOleg won by resignation"]

1. d4 {[%clk 0:03:01.9]} 1... Nf6 {[%clk 0:03:00.6]} 2. Nf3 {[%clk 0:03:00]}
2... e6 {[%clk 0:03:02]} 3. c4 {[%clk 0:02:59.5]} 3... Bb4+ {[%clk 0:03:02]} 4.
Bd2 {[%clk 0:02:58.6]} 4... Bxd2+ {[%clk 0:03:00.4]} 5. Qxd2 {[%clk 0:02:58]}
5... b6 {[%clk 0:02:59.7]} 6. e3 {[%clk 0:02:58.7]} 6... Bb7 {[%clk 0:03:00.6]}
7. Nc3 {[%clk 0:02:58.5]} 7... O-O {[%clk 0:02:59.2]} 8. Be2 {[%clk 0:02:58.8]}
8... Ne4 {[%clk 0:02:59.1]} 9. Nxe4 {[%clk 0:02:59.1]} 9... Bxe4 {[%clk
0:03:01]} 10. O-O {[%clk 0:02:59.5]} 10... d6 {[%clk 0:03:00.3]} 11. Qc3 {[%clk
0:02:47.7]} 11... Nd7 {[%clk 0:02:58.2]} 12. Nd2 {[%clk 0:02:48.5]} 12... Bb7
{[%clk 0:02:55.9]} 13. e4 {[%clk 0:02:47.6]} 13... e5 {[%clk 0:02:54.5]} 14. d5
{[%clk 0:02:47]} 14... a5 {[%clk 0:02:52.2]} 15. b3 {[%clk 0:02:44.5]} 15... Qh4
{[%clk 0:02:41]} 16. g3 {[%clk 0:02:37.6]} 16... Qe7 {[%clk 0:02:40.2]} 17. f4
{[%clk 0:02:36.7]} 17... exf4 {[%clk 0:02:39.3]} 18. Rxf4 {[%clk 0:02:36.4]}
18... Ne5 {[%clk 0:02:28.8]} 19. Raf1 {[%clk 0:02:36.1]} 19... Bc8 {[%clk
0:02:27.9]} 20. Kg2 {[%clk 0:02:31.8]} 20... Bd7 {[%clk 0:02:27.6]} 21. h3
{[%clk 0:02:21]} 21... f6 {[%clk 0:02:27.5]} 22. g4 {[%clk 0:02:18.1]} 22... Ng6
{[%clk 0:02:28.5]} 23. R4f2 {[%clk 0:02:13.3]} 23... Rae8 {[%clk 0:02:13.8]} 24.
Qg3 {[%clk 0:02:09.6]} 24... Qe5 {[%clk 0:02:12.1]} 25. Qxe5 {[%clk 0:02:08.6]}
25... fxe5 {[%clk 0:02:13.1]} 26. Rxf8+ {[%clk 0:02:03.6]} 26... Nxf8 {[%clk
0:02:15]} 27. Kg3 {[%clk 0:01:20]} 27... Ng6 {[%clk 0:02:13.8]} 28. Bd1 {[%clk
0:01:09.8]} 28... Nf4 {[%clk 0:02:14.5]} 29. Bc2 {[%clk 0:01:02.4]} 29... Rf8
{[%clk 0:02:02.7]} 30. Rf2 {[%clk 0:01:03.1]} 30... Rf6 {[%clk 0:01:58.1]} 31.
Nf1 {[%clk 0:01:03.2]} 31... h5 {[%clk 0:01:48.8]} 32. g5 {[%clk 0:00:53.9]}
32... Rf7 {[%clk 0:01:22.1]} 33. h4 {[%clk 0:00:51.3]} 33... Ne2+ {[%clk
0:01:20.6]} 34. Rxe2 {[%clk 0:00:24.2]} 34... Rxf1 {[%clk 0:01:22.5]} 35. Rf2
{[%clk 0:00:22.6]} 35... Re1 {[%clk 0:01:23.8]} 36. Bd3 {[%clk 0:00:19.1]} 36...
Bg4 {[%clk 0:01:24.5]} 37. Bc2 {[%clk 0:00:19.3]} 37... g6 {[%clk 0:01:18.5]}
38. Kg2 {[%clk 0:00:19.1]} 38... Re3 {[%clk 0:01:16.2]} 39. Kh2 {[%clk
0:00:16.9]} 39... Rh3+ {[%clk 0:01:10.3]} 40. Kg2 {[%clk 0:00:17.8]} 40... Rxh4
{[%clk 0:01:12.2]} 41. Rf6 {[%clk 0:00:16.7]} 41... Kg7 {[%clk 0:01:13]} 42. Rf2
{[%clk 0:00:13.4]} 42... Rh3 {[%clk 0:01:13.4]} 43. Rf1 {[%clk 0:00:12.1]} 43...
Re3 {[%clk 0:01:04.3]} 44. Rf2 {[%clk 0:00:13.1]} 44... h4 {[%clk 0:01:03.4]}
45. Kh2 {[%clk 0:00:14]} 45... Bf3 {[%clk 0:00:52.2]} 46. Bb1 {[%clk 0:00:12.5]}
46... Bxe4 {[%clk 0:00:47.6]} 47. Bxe4 {[%clk 0:00:14.4]} 47... Rxe4 {[%clk
0:00:49.2]} 48. Kh3 {[%clk 0:00:15.5]} 48... a4 {[%clk 0:00:44.1]} 49. Rf3
{[%clk 0:00:11.7]} 49... Re2 {[%clk 0:00:37.6]} 50. bxa4 {[%clk 0:00:08]} 50...
Rxa2 {[%clk 0:00:38.3]} 51. Rf6 {[%clk 0:00:09.6]} 51... Ra3+ {[%clk 0:00:34.1]}
52. Kxh4 {[%clk 0:00:10.2]} 52... Rxa4 {[%clk 0:00:35.4]} 53. Re6 {[%clk
0:00:11.8]} 53... Rxc4+ {[%clk 0:00:36.1]} 54. Kg3 {[%clk 0:00:12.9]} 54... b5
{[%clk 0:00:35.9]} 55. Re7+ {[%clk 0:00:14]} 55... Kf8 {[%clk 0:00:36.4]} 56.
Re6 {[%clk 0:00:15.4]} 56... Kf7 {[%clk 0:00:35.8]} 57. Rf6+ {[%clk 0:00:16.6]}
57... Kg7 {[%clk 0:00:37.4]} 58. Re6 {[%clk 0:00:17.8]} 58... b4 {[%clk
0:00:38.9]} 59. Re7+ {[%clk 0:00:19.1]} 59... Kf8 {[%clk 0:00:40]} 60. Rh7
{[%clk 0:00:19.7]} 60... Rc5 {[%clk 0:00:28.5]} 61. Rh8+ {[%clk 0:00:19.1]}
61... Kf7 {[%clk 0:00:30]} 62. Rc8 {[%clk 0:00:19.4]} 62... b3 {[%clk
0:00:29.5]} 63. Rb8 {[%clk 0:00:20.4]} 63... Rxd5 {[%clk 0:00:30.6]} 64. Rxb3
{[%clk 0:00:21.9]} 64... Ke6 {[%clk 0:00:31.6]} 65. Rf3 {[%clk 0:00:22.2]} 65...
e4 {[%clk 0:00:26.2]} 66. Rf6+ {[%clk 0:00:23.1]} 66... Ke5 {[%clk 0:00:27.9]}
67. Rxg6 {[%clk 0:00:24.4]} 67... Kf5 {[%clk 0:00:25.4]} 68. Rg8 {[%clk
0:00:24.4]} 68... Rd3+ {[%clk 0:00:26.6]} 69. Kg2 {[%clk 0:00:24.2]} 69... Rd2+
{[%clk 0:00:23.7]} 70. Kg3 {[%clk 0:00:25.2]} 70... Rd3+ {[%clk 0:00:25.2]} 71.
Kg2 {[%clk 0:00:26.1]} 71... Rd5 {[%clk 0:00:21.1]} 72. g6 {[%clk 0:00:25.9]}
72... Kf6 {[%clk 0:00:22.3]} 73. Kf2 {[%clk 0:00:24.7]} 73... Rg5 {[%clk
0:00:21.7]} 74. Rc8 {[%clk 0:00:22.2]} 74... Rxg6 {[%clk 0:00:17.3]} 75. Rxc7
{[%clk 0:00:22.5]} 75... Ke5 {[%clk 0:00:18.5]} 76. Ke3 {[%clk 0:00:21.6]} 76...
d5 {[%clk 0:00:18.2]} 77. Re7+ {[%clk 0:00:21.3]} 77... Re6 {[%clk 0:00:19.1]}
78. Rh7 {[%clk 0:00:22.4]} 78... d4+ {[%clk 0:00:20.1]} 79. Ke2 {[%clk
0:00:23.9]} 79... Rf6 {[%clk 0:00:21.3]} 80. Re7+ {[%clk 0:00:24.3]} 80... Kf4
{[%clk 0:00:21.9]} 81. Rh7 {[%clk 0:00:25.1]} 81... Rg6 {[%clk 0:00:22.5]} 82.
Rf7+ {[%clk 0:00:25.2]} 82... Ke5 {[%clk 0:00:23.9]} 83. Re7+ {[%clk 0:00:26.3]}
83... Re6 {[%clk 0:00:25.4]} 84. Rh7 {[%clk 0:00:27.5]} 84... Kd5 {[%clk
0:00:26.6]} 85. Rh5+ {[%clk 0:00:28.3]} 85... Kc4 {[%clk 0:00:27.4]} 86. Rh8
{[%clk 0:00:29.4]} 86... e3 {[%clk 0:00:22.9]} 87. Rc8+ {[%clk 0:00:29.9]} 87...
Kd5 {[%clk 0:00:24.1]} 88. Rd8+ {[%clk 0:00:29.4]} 88... Ke4 {[%clk 0:00:25.4]}
89. Rd7 {[%clk 0:00:28.7]} 89... Re8 {[%clk 0:00:23.5]} 90. Rd6 {[%clk
0:00:27.1]} 90... Ke5 {[%clk 0:00:24.4]} 91. Rd7 {[%clk 0:00:28]} 91... Rf8
{[%clk 0:00:22.7]} 92. Kd3 {[%clk 0:00:27.7]} 92... Rf2 {[%clk 0:00:18.9]} 93.
Re7+ {[%clk 0:00:28.2]} 93... Kd6 {[%clk 0:00:20.2]} 94. Re8 {[%clk 0:00:27.3]}
94... Rd2+ {[%clk 0:00:21.6]} 95. Kc4 {[%clk 0:00:28.2]} 95... e2 {[%clk
0:00:22.3]} 96. Re4 {[%clk 0:00:28.5]} 96... d3 {[%clk 0:00:23]} 97. Kc3 {[%clk
0:00:29]} 97... Rd1 {[%clk 0:00:23.6]} 98. Kb2 {[%clk 0:00:28.4]} 98... e1=Q
{[%clk 0:00:24.2]} 99. Rd4+ {[%clk 0:00:29.3]} 99... Ke5 {[%clk 0:00:24.4]} 100.
Rc4 {[%clk 0:00:27.2]} 100... Rb1+ {[%clk 0:00:24.7]} 101. Ka3 {[%clk 0:00:28]}
101... Qa5+ {[%clk 0:00:24.7]} 102. Ra4 {[%clk 0:00:24.3]} 102... Qc3+ {[%clk
0:00:25.7]} 0-1